bitfinex/quotes_SOLUSD_20260117
["timestamp","ask_amount","ask_price","bid_price","bid_amount"]
[1768650405174,24.69721424,143.74,143.71,3.13327731]
[1768650408974,24.69721424,143.74,143.71,5.21465629]
[1768650409682,24.69721424,143.74,143.71,3.13327731]
[1768650410181,24.69721424,143.74,143.71,5.21465629]
[1768650411577,24.69721424,143.74,143.71,3.13327731]
[1768650415775,17.74012857,143.74,143.71,3.13327731]
[1768650417578,35.1387872,143.74,143.71,3.13327731]
[1768650418462,19.8987872,143.74,143.71,3.13327731]
[1768650424199,2.51182259,143.73,143.71,0.2]
[1768650424485,5.20137683,143.72,143.71,0.2]
[1768650424697,5.20137683,143.72,143.68,2.88685279]
[1768650424998,5.2006733,143.71,143.68,2.88685279]
[1768650425165,17.60163266,143.71,143.68,2.88685279]
[1768650426266,19.88397313,143.71,143.68,2.88685279]
[1768650426587,15.24,143.7,143.68,2.88685279]
[1768650427494,32.84163266,143.7,143.68,2.88685279]
[1768650431091,15.24,143.7,143.68,2.88685279]
[1768650431294,22.40032046,143.7,143.68,2.88685279]
[1768650431474,2.28367294,143.69,143.67,0.2]
[1768650432097,7.25190471,143.69,143.67,0.2]
[1768650435682,15.24,143.7,143.69,2.88685279]
[1768650436074,67.70032762,143.71,143.7,2.88685279]
[1768650436302,2.28506012,143.73,143.7,2.88685279]
[1768650438503,32.20216056,143.74,143.7,2.88685279]
[1768650438702,5.19569203,143.73,143.7,4.97015285]
[1768650438876,30.1188605,143.74,143.7,4.97015285]
[1768650439077,7.48154807,143.73,143.7,4.97015285]
[1768650439278,2.28585478,143.73,143.7,4.97015285]
[1768650440699,2.28585478,143.73,143.7,2.88685279]
[1768650441298,9.24353666,143.74,143.71,2.88685279]
[1768650443608,20.87464774,143.76,143.73,2.08330006]
[1768650443812,20.87464774,143.76,143.72,2.91398483]
[1768650443813,2.2871195,143.78,143.75,2.08330006]
[1768650444011,5.19774487,143.77,143.75,2.08330006]
[1768650444314,2.2871195,143.78,143.74,2.08330006]
[1768650445506,2.31760525,143.78,143.74,2.08330006]
[1768650445701,2.31760525,143.78,143.74,11.95401814]
[1768650446083,9.27213918,143.8,143.77,2.91398483]
[1768650447106,2.31784397,143.8,143.77,2.91398483]
[1768650447302,2.31784397,143.8,143.77,4.99728489]
[1768650448696,2.31784397,143.8,143.78,2.08330006]
[1768650449085,2.31784397,143.8,143.77,9.86949381]
[1768650449406,2.31784397,143.8,143.77,11.95279387]
[1768650449908,9.27200311,143.8,143.77,4.99728489]
[1768650450098,6.95415914,143.8,143.78,2.91398483]
[1768650450995,2.31880649,143.79,143.76,11.95291415]
[1768650452518,2.31880649,143.79,143.76,9.86961409]
[1768650452689,2.31880649,143.79,143.77,2.08330006]
[1768650452891,2.31880649,143.79,143.76,9.86961409]
[1768650453498,2.25688516,143.79,143.76,9.86961409]
[1768650455914,2.25829841,143.8,143.77,2.88635538]
[1768650458096,2.25874815,143.81,143.78,2.88635538]
[1768650458292,2.25874815,143.81,143.78,2.85635541]
[1768650461220,2.25874815,143.81,143.78,2.79635546]
[1768650462801,9.2124056,143.81,143.78,2.79635546]
[1768650467817,9.2124056,143.81,143.78,2.73635551]
[1768650470014,67.70032762,143.82,143.78,2.73635551]
[1768650470213,67.70032762,143.82,143.8,4.96965544]
[1768650470515,67.70032762,143.82,143.8,4.90965549]
[1768650470713,67.70032762,143.82,143.8,2.08330006]
[1768650470916,64.66609065,143.82,143.8,2.08330006]
[1768650471409,64.66609065,143.82,143.78,22.17483535]
[1768650471410,67.49550228,143.82,143.78,6.95483535]
[1768650471713,64.66609065,143.82,143.78,24.25813541]
[1768650472015,67.66688223,143.82,143.78,24.25813541]
[1768650472418,67.66688223,143.82,143.79,2.90493662]
[1768650473629,67.66688223,143.82,143.79,9.85936213]
[1768650474396,67.66688223,143.82,143.79,9.79936222]
[1768650476415,67.66688223,143.82,143.78,17.30330006]
[1768650476416,3.00079158,143.81,143.78,9.85987056]
[1768650476626,3.00079158,143.81,143.75,38.25230276]
[1768650476627,3.00079158,143.8,143.77,2.90493662]
[1768650482933,3.00079158,143.79,143.76,2.90493662]
[1768650483905,3.00079158,143.79,143.75,25.08129324]
[1768650486127,3.00079158,143.78,143.75,2.90493662]
[1768650489714,3.00079158,143.78,143.74,6.95682659]
[1768650489916,3.00079158,143.77,143.74,9.86176321]
[1768650493106,3.00079158,143.76,143.72,9.86259177]
[1768650493429,3.00079158,143.76,143.73,2.90493662]
[1768650494432,5.08409164,143.76,143.73,2.90493662]
[1768650494819,5.05409164,143.76,143.73,2.90493662]
[1768650495021,2.97079158,143.76,143.73,2.90493662]
[1768650495221,5.05409164,143.76,143.73,2.90493662]
[1768650495408,5.05219649,143.76,143.73,2.90493662]
[1768650497230,2.97079158,143.76,143.73,2.90493662]
[1768650499327,3.00079158,143.77,143.73,6.95748516]
[1768650499530,3.00079158,143.77,143.74,2.90493662]
[1768650508233,5.08219649,143.77,143.74,2.90493662]
[1768650512950,69.47611414,143.78,143.75,2.86605503]
[1768650513446,67.39470923,143.78,143.75,2.86605503]
[1768650513650,69.47611414,143.78,143.75,2.86605503]
[1768650518737,67.39470923,143.78,143.75,9.8224952]
[1768650519053,69.47611414,143.78,143.76,2.86605503]
[1768650521354,67.39470923,143.78,143.76,2.86605503]
[1768650521854,69.47611414,143.78,143.76,2.86605503]
[1768650522056,67.39470923,143.78,143.76,2.86605503]
[1768650525864,64.66609065,143.78,143.77,2.86605503]
[1768650526156,11.76421903,143.8,143.77,2.80605504]
[1768650527659,9.68281412,143.8,143.77,2.80605504]
[1768650532757,2.83122214,143.79,143.75,2.8375156]
[1768650533157,2.83122214,143.79,143.76,2.8375156]
[1768650533744,9.78541768,143.8,143.76,2.8375156]
[1768650535767,9.78541768,143.8,143.77,2.8375156]
[1768650537368,2.83122214,143.8,143.77,9.79301496]
[1768650540748,2.83122214,143.8,143.77,9.73301497]
[1768650541168,2.83122214,143.8,143.77,2.77751561]
[1768650548976,2.08140491,143.79,143.77,2.77751561]
[1768650549164,11.86681852,143.8,143.77,2.77751561]
[1768650549359,2.83122214,143.8,143.77,2.77751561]
[1768650552862,64.66609065,143.82,143.79,2.8375156]
[1768650553174,64.66609065,143.82,143.79,2.08140491]
[1768650554678,64.66609065,143.82,143.8,6.95410292]
[1768650554976,64.66609065,143.82,143.8,11.87302343]
[1768650555356,64.66609065,143.82,143.8,11.87048057]
[1768650555556,64.66609065,143.82,143.81,2.8375156]
[1768650555764,2.83122214,143.84,143.8,9.03296497]
[1768650556082,2.83122214,143.85,143.8,9.03296497]
[1768650556285,2.83122214,143.85,143.81,2.8375156]
[1768650556782,2.83122214,143.85,143.82,2.8375156]
[1768650558482,2.83122214,143.85,143.82,9.790608]
[1768650560159,2.83122214,143.85,143.83,2.8375156]
[1768650560358,2.83122214,143.85,143.82,9.790608]
[1768650560584,2.83122214,143.85,143.83,2.8375156]
[1768650560776,20.23148534,143.87,143.83,2.8375156]
[1768650560979,2.83122214,143.86,143.83,2.8375156]
[1768650561761,2.83122214,143.86,143.82,9.75790767]
[1768650563180,2.83122214,143.86,143.78,2.07886205]
[1768650563181,2.86528603,143.84,143.79,2.80481527]
[1768650563365,2.86528603,143.82,143.79,9.75909139]
[1768650565495,2.86528603,143.83,143.8,2.80481527]
[1768650567096,2.86528603,143.83,143.8,9.75875786]
[1768650581375,2.74764053,143.82,143.8,6.95394259]
[1768650582500,4.82650258,143.84,143.8,2.77591745]
[1768650582879,9.03104453,143.84,143.8,2.77591745]
[1768650583078,2.74764053,143.83,143.8,2.77591745]
[1768650591389,2.74764053,143.83,143.79,9.73050399]
[1768650591590,2.99288881,143.82,143.79,9.73050399]
[1768650592493,2.99288881,143.87,143.8,2.84556984]
[1768650592697,2.99288881,143.83,143.8,2.84556984]
[1768650593411,2.99288881,143.83,143.8,9.79960751]
[1768650594694,2.99288881,143.83,143.79,7.30742323]
[1768650594891,2.99288881,143.87,143.81,2.43169874]
[1768650595100,2.99288881,143.87,143.82,0.35283669]
[1768650595303,2.99288881,143.86,143.82,0.35283669]
[1768650596514,2.99288881,143.86,143.82,7.30563615]
[1768650597301,2.99288881,143.86,143.83,0.35298153]
[1768650598840,2.99288881,143.86,143.83,7.30538413]
[1768650599315,6.95071939,143.87,143.84,0.35348671]
[1768650599517,9.9436082,143.87,143.84,0.35348671]
[1768650601614,0.1,143.88,143.85,2.07886205]
[1768650601802,0.1,143.88,143.86,2.07886205]
[1768650602290,0.1,143.88,143.85,2.07886205]
[1768650603022,0.1,143.88,143.86,2.07886205]
[1768650604104,0.1,143.88,143.86,9.02966962]
[1768650609095,0.1,143.88,143.87,2.07886205]
[1768650615640,0.1,143.89,143.87,9.029431]
[1768650615920,0.1,143.91,143.9,2.07886205]
[1768650616230,0.1,143.92,143.9,2.07886205]
[1768650617411,0.1,143.92,143.9,2.07598273]
[1768650618029,3.09288881,143.92,143.9,2.07598273]
[1768650619541,0.1,143.93,143.91,2.07598273]
[1768650619739,3.09288881,143.94,143.92,2.07598273]
[1768650620202,3.09288881,143.94,143.91,2.07598273]
[1768650620903,3.09288881,143.94,143.91,2.01598273]
[1768650621630,2.99288881,143.93,143.91,2.01598273]
[1768650622305,2.99288881,143.93,143.91,2.07598273]
[1768650624224,2.99288881,143.93,143.9,9.02505884]
[1768650624927,2.83504686,143.94,143.9,9.02505884]
[1768650625334,2.83504686,143.94,143.91,2.07598273]
[1768650626008,2.83504686,143.94,143.92,2.07598273]
[1768650626427,2.83504686,143.94,143.91,9.02473849]
[1768650630338,0.1,143.94,143.92,2.07598273]
[1768650631517,0.1,143.94,143.91,6.94875576]
[1768650631719,2.83504686,143.94,143.92,2.07598273]
[1768650631918,0.1,143.94,143.92,9.02421721]
[1768650632318,2.90562198,143.94,143.9,15.22]
[1768650632536,2.80562198,143.93,143.9,6.94911938]
[1768650637948,2.80562198,143.93,143.89,2.07598273]
[1768650639546,2.80562198,143.93,143.9,6.94927032]
[1768650643049,2.80562198,143.93,143.89,6.94975328]
[1768650643347,2.80562198,143.93,143.89,9.02573601]
[1768650646381,2.80562198,143.93,143.9,9.02497131]
[1768650648838,2.80562198,143.93,143.89,6.94975328]
[1768650649037,2.80562198,143.93,143.9,2.07598273]
[1768650649856,2.90562198,143.94,143.89,24.32413648]
[1768650650066,2.80562198,143.93,143.89,24.32413648]
[1768650651963,2.80562198,143.93,143.89,26.40011921]
[1768650653555,2.80562198,143.93,143.89,9.02573601]
[1768650653765,2.80562198,143.93,143.89,6.94975328]
[1768650654768,2.80562198,143.93,143.89,9.02573601]
[1768650655061,2.80562198,143.93,143.89,6.94975328]
[1768650655267,2.80562198,143.93,143.89,9.02573601]
[1768650657270,2.80562198,143.93,143.9,2.07598273]
[1768650657659,2.80562198,143.93,143.89,9.02573601]
[1768650661173,2.72609996,143.92,143.89,9.02573601]
[1768650662460,2.72609996,143.91,143.88,17.29598273]
[1768650663160,2.72609996,143.91,143.86,2.07598273]
[1768650663360,2.72609996,143.91,143.86,9.02673532]
[1768650663561,2.72609996,143.9,143.86,6.95075259]
[1768650663876,2.69609997,143.9,143.86,9.06509842]
[1768650666264,6.94933735,143.9,143.86,9.06509842]
[1768650666576,6.94933735,143.9,143.86,9.02673532]
[1768650666794,9.02532008,143.9,143.85,15.22]
[1768650666953,2.07598273,143.89,143.84,9.09639941]
[1768650667885,9.02604898,143.89,143.84,9.09639941]
[1768650668181,6.95006625,143.89,143.84,9.09639941]
[1768650668387,2.72609996,143.88,143.84,9.09639941]
[1768650669379,9.67634094,143.88,143.84,9.09639941]
[1768650669569,2.72609996,143.87,143.84,9.09639941]
[1768650669772,2.69609997,143.87,143.84,9.09639941]
[1768650673188,2.66609998,143.87,143.84,9.09639941]
[1768650673558,2.63609999,143.87,143.84,9.09639941]
[1768650674388,2.63609999,143.87,143.84,7.02041668]
[1768650674766,2.63609999,143.87,143.84,9.09639941]
[1768650676188,2.63609999,143.87,143.84,7.02041668]
[1768650676559,2.63609999,143.87,143.84,9.09639941]
[1768650679290,2.63609999,143.87,143.84,9.09816148]
[1768650680375,2.6061,143.87,143.84,9.09816148]
[1768650681878,17.37122283,143.92,143.85,2.0777448]
[1768650682088,17.37122283,143.92,143.86,2.0777448]
[1768650682089,2.0777448,143.91,143.86,2.0777448]
[1768650682291,3.00124551,143.9,143.86,2.0777448]
[1768650683773,3.00124551,143.89,143.86,2.0777448]
[1768650684799,3.00124551,143.89,143.85,9.21916739]
[1768650686312,3.00124551,143.89,143.85,7.14142259]
[1768650686611,3.00124551,143.89,143.85,9.21916739]
[1768650694325,3.00124551,143.89,143.85,7.14142259]
[1768650694742,3.00124551,143.89,143.85,9.21916739]
[1768650696705,3.00124551,143.89,143.85,7.14142259]
[1768650696904,3.00124551,143.89,143.85,9.21916739]
[1768650701605,3.00124551,143.89,143.86,9.028816]
[1768650702324,3.00124551,143.89,143.86,6.9510712]
[1768650709633,2.92064733,143.9,143.87,2.27026215]
[1768650709835,2.92064733,143.91,143.88,2.0777448]
[1768650715017,2.92064733,143.91,143.88,9.22049826]
[1768650715214,2.92064733,143.91,143.89,2.0777448]
[1768650716539,2.94134697,143.92,143.89,2.0777448]
[1768650716746,2.94134697,143.92,143.89,9.22052018]
[1768650716947,9.88936075,143.93,143.9,0.19303203]
[1768650717546,9.88936075,143.93,143.89,9.02748815]
[1768650717748,2.94134697,143.92,143.89,9.02748815]
[1768650721272,9.88968251,143.92,143.89,2.0777448]
[1768650721571,2.94134697,143.92,143.89,2.0777448]
[1768650723672,2.94134697,143.92,143.88,9.22072642]
[1768650729283,2.94134697,143.92,143.89,2.0777448]
[1768650729786,2.94134697,143.92,143.89,9.0273773]
[1768650734656,2.94134697,143.92,143.89,9.22140731]
[1768650737282,2.94134697,143.92,143.89,7.14366251]
[1768650737462,2.94134697,143.92,143.89,9.22140731]
[1768650739280,2.94134697,143.92,143.89,9.21987951]
[1768650740081,6.94798839,143.93,143.9,2.27053614]
[1768650740082,2.94134697,143.93,143.9,2.27053614]
[1768650741075,2.94134697,143.93,143.9,0.19431914]
[1768650741274,2.94134697,143.93,143.9,9.21971145]
[1768650744568,2.98213117,143.94,143.91,2.27076224]
[1768650745275,2.98213117,143.94,143.91,2.076217]
[1768650746685,2.98213117,143.94,143.9,9.21998122]
[1768650753794,2.98213117,143.94,143.91,2.076217]
[1768650765078,2.98213117,143.94,143.88,17.296217]
[1768650765079,2.75706428,143.92,143.88,17.296217]
[1768650765274,2.75706428,143.92,143.89,2.076217]
[1768650768082,2.75706428,143.92,143.88,33.88965261]
[1768650768280,2.75706428,143.92,143.88,24.44165787]
[1768650768481,2.75706428,143.92,143.89,0.19549904]
[1768650768700,2.75706428,143.93,143.9,0.19549904]
[1768650774842,2.75706428,143.93,143.9,7.14475752]
[1768650777332,2.86064214,143.94,143.9,7.1450683]
[1768650779441,2.76064214,143.93,143.9,7.1450683]
[1768650780721,2.76064214,143.93,143.9,6.94925848]
[1768650781349,2.76064214,143.92,143.89,6.94975328]
[1768650781725,2.76064214,143.92,143.88,6.9501273]
[1768650782618,2.76064214,143.92,143.88,7.14607955]
[1768650785949,9.70900199,143.92,143.88,7.14607955]
[1768650786150,2.76064214,143.91,143.88,7.14607955]
[1768650788842,2.76064214,143.92,143.88,9.22229655]
[1768650789552,2.76064214,143.92,143.89,0.19613833]
[1768650790262,2.76064214,143.93,143.89,0.19613833]
[1768650791657,2.76064214,143.93,143.89,9.22174383]
[1768650792648,2.76064214,143.93,143.9,0.19621358]
[1768650793758,2.76064214,143.93,143.9,7.14525294]
[1768650817759,2.76064214,143.93,143.9,9.22139773]
[1768650818872,2.76064214,143.93,143.9,7.14525294]
[1768650836522,2.76064214,143.93,143.9,6.94903936]
[1768650841922,2.76064214,143.93,143.89,9.22279697]
[1768650842798,2.76064214,143.93,143.89,7.14665218]
[1768650842999,2.76064214,143.93,143.89,9.22279697]
[1768650847026,2.76064214,143.93,143.9,9.02523966]
[1768650847738,2.76064214,143.93,143.9,6.94909487]
[1768650888169,2.76064214,143.93,143.88,20.14741133]
[1768650889274,2.76064214,143.93,143.9,2.85140363]
[1768650889572,2.76064214,143.93,143.9,4.92741133]
[1768650891274,2.76064214,143.93,143.9,9.8004481]
[1768650902802,9.70848467,143.93,143.9,2.85140363]
[1768650903005,2.76064214,143.93,143.9,2.85140363]
[1768650906713,2.7427128,143.92,143.9,2.85140363]
[1768650906909,2.7427128,143.92,143.89,9.7570888]
[1768650907705,2.7427128,143.92,143.89,6.94962796]
[1768650908103,2.7427128,143.91,143.88,9.75763868]
[1768650908421,2.71271281,143.91,143.88,9.75763868]
[1768650913526,2.71271281,143.91,143.88,6.95017784]
[1768650920336,2.71271281,143.91,143.88,9.75763868]
[1768650921937,2.71271281,143.91,143.88,6.95017784]
[1768650923747,2.74256772,143.9,143.85,12.38560685]
[1768650923931,2.74256772,143.9,143.85,29.68161455]
[1768650924821,2.74256772,143.9,143.86,6.95120255]
[1768650925326,2.74256772,143.9,143.86,9.02831477]
[1768650926945,2.74256772,143.9,143.86,11.96592688]
[1768650929745,2.74256772,143.9,143.86,9.88881466]
[1768650930550,2.72838218,143.89,143.86,9.88881466]
[1768650935249,2.69838219,143.89,143.86,9.88881466]
[1768650947170,2.6683822,143.89,143.86,9.88881466]
[1768650948268,2.6683822,143.89,143.87,2.73979148]
[1768650948566,2.6683822,143.89,143.86,9.69099403]
[1768650948770,2.63838221,143.89,143.86,9.69099403]
[1768650949570,2.63838221,143.89,143.86,2.73979148]
[1768650951871,4.71549443,143.89,143.86,2.73979148]
[1768650952567,11.6652484,143.89,143.86,2.73979148]
[1768650960781,11.63524841,143.89,143.86,2.73979148]
[1768650962081,11.63524841,143.89,143.85,9.68833928]
[1768650962082,9.02686619,143.89,143.85,9.68833928]
[1768650962582,9.02686619,143.89,143.85,2.73683744]
[1768650962767,4.61898417,143.88,143.85,2.73683744]
[1768650967377,2.53415328,143.87,143.84,24.90881892]
[1768650968680,2.53415328,143.87,143.85,2.73683744]
[1768650969085,4.60978003,143.88,143.85,2.73683744]
[1768650969281,2.07711222,143.88,143.85,2.73683744]
[1768650969688,4.60831163,143.88,143.85,2.73683744]
[1768650971988,2.07711222,143.88,143.85,2.73683744]
[1768650972787,4.60400685,143.88,143.85,2.73683744]
[1768650975888,2.52273649,143.87,143.84,9.68881892]
[1768650976084,4.59984871,143.88,143.85,2.73683744]
[1768650976488,2.52273649,143.88,143.85,2.73683744]
[1768650976665,4.59984871,143.88,143.85,2.73683744]
[1768650980780,4.56984872,143.88,143.85,2.73683744]
[1768650985292,4.57067129,143.88,143.85,2.73683744]
[1768650986701,2.4927365,143.88,143.85,2.73683744]
[1768650986997,4.57067129,143.88,143.85,2.73683744]
[1768650990290,9.44304353,143.88,143.85,2.73683744]
[1768651008733,11.52097832,143.88,143.85,2.73683744]
[1768651010934,9.40270652,143.87,143.84,2.64295406]
[1768651011116,11.48064131,143.87,143.84,2.64295406]
[1768651011434,11.47976032,143.87,143.84,2.64295406]
[1768651012522,4.5271155,143.86,143.84,2.64295406]
[1768651012734,2.0479348,143.86,143.83,2.83223337]
[1768651013138,11.47802859,143.87,143.83,2.83223337]
[1768651021872,4.51979931,143.86,143.83,2.83223337]
[1768651022076,6.95091309,143.87,143.81,2.83223337]
[1768651022077,2.41186453,143.85,143.81,2.83223337]
[1768651022274,2.07793479,143.85,143.81,2.83223337]
[1768651023373,9.02981012,143.85,143.81,2.83223337]
[1768651023974,11.44014958,143.85,143.81,2.83223337]
[1768651026370,2.07793479,143.84,143.81,2.83223337]
[1768651026579,2.0479348,143.84,143.81,2.83223337]
[1768651026872,4.4560517,143.84,143.81,2.83223337]
[1768651030769,11.40824806,143.84,143.81,2.83223337]
[1768651032065,2.40463173,143.83,143.79,9.78664234]
[1768651032383,2.40463173,143.83,143.8,9.78632743]
[1768651032562,2.40395853,143.82,143.79,9.78669874]
[1768651033081,2.40395853,143.82,143.8,2.83223337]
[1768651034972,2.40395853,143.82,143.79,6.95446537]
[1768651035176,4.48189332,143.82,143.78,2.83223337]
[1768651036285,2.40395853,143.82,143.78,2.83223337]
[1768651036482,9.35725428,143.82,143.79,2.83223337]
[1768651041279,11.43518907,143.82,143.79,2.83223337]
[1768651042789,4.48189332,143.82,143.79,2.83223337]
[1768651043782,2.40395853,143.82,143.8,2.63315313]
[1768651043987,6.95286181,143.83,143.8,2.63315313]
[1768651051599,9.34486786,143.83,143.8,2.63315313]
[1768651054298,2.39200605,143.83,143.8,2.63315313]
[1768651061479,2.38651847,143.85,143.81,4.84017348]
[1768651061685,2.38651847,143.86,143.82,2.76102907]
[1768651062488,9.33804221,143.86,143.82,2.76102907]
[1768651067909,2.38380647,143.85,143.82,2.76102907]
[1768651075106,9.33199461,143.86,143.82,2.76102907]
[1768651075309,11.41113902,143.86,143.82,2.76102907]
[1768651076523,2.37968403,143.85,143.82,2.76102907]
[1768651093928,9.33141504,143.85,143.82,2.76102907]
[1768651094526,3.62489284,143.92,143.85,2.79904371]
[1768651094830,2.07914441,143.87,143.84,2.79904371]
[1768651095022,2.07914441,143.86,143.83,2.79904371]
[1768651095527,9.02938071,143.88,143.84,2.79904371]
[1768651095725,24.24904059,143.89,143.84,2.79904371]
[1768651096127,5.20343976,143.88,143.84,2.79904371]
[1768651096334,24.24904059,143.89,143.84,2.79904371]
[1768651096715,24.24904059,143.89,143.84,9.75098209]
[1768651097523,9.02904059,143.89,143.84,9.75098209]
[1768651097722,24.24904059,143.89,143.84,9.75098209]
[1768651101037,2.07914441,143.88,143.84,9.75098209]
[1768651103538,7.78318166,143.91,143.87,4.81340222]
[1768651103723,9.02776153,143.92,143.88,2.73425781]
[1768651103922,24.24711627,143.93,143.88,2.73425781]
[1768651105038,22.16797186,143.93,143.89,9.68401109]
[1768651105228,15.22,143.93,143.89,9.68401109]
[1768651110625,9.12383708,143.94,143.89,9.68401109]
[1768651110826,15.22,143.93,143.89,9.68401109]
[1768651116457,17.29631125,143.93,143.89,9.68401109]
[1768651120560,24.24423907,143.93,143.89,9.62401109]
[1768651121962,24.24423907,143.93,143.89,2.73425781]
[1768651124149,2.07631125,143.92,143.88,9.74702479]
[1768651124848,9.02482255,143.92,143.89,2.79695293]
[1768651129071,6.9485113,143.92,143.89,2.79695293]
[1768651136071,15.22,143.93,143.9,2.83536686]
[1768651136257,15.22,143.93,143.9,2.77536686]
[1768651140251,22.16791765,143.93,143.9,2.77536686]
[1768651141464,24.2442289,143.93,143.9,2.77536686]
[1768651148477,5.20752294,143.92,143.9,2.77536686]
[1768651148678,24.2442289,143.93,143.9,2.77536686]
[1768651148993,5.20752294,143.92,143.9,2.77536686]
[1768651149165,24.2442289,143.93,143.9,2.77536686]
[1768651149462,5.2075242,143.92,143.9,2.77536686]
[1768651149777,24.2442289,143.93,143.9,2.77536686]
[1768651149961,5.2076001,143.92,143.9,2.77536686]
[1768651150161,24.2442289,143.93,143.9,2.77536686]
[1768651150478,5.20759884,143.92,143.9,2.77536686]
[1768651150665,24.2442289,143.93,143.9,2.77536686]
[1768651150966,5.20760511,143.92,143.9,2.77536686]
[1768651151166,24.2442289,143.93,143.9,2.77536686]
[1768651151466,5.20760385,143.92,143.9,2.77536686]
[1768651151767,24.2442289,143.93,143.9,2.77536686]
[1768651151966,5.20767036,143.92,143.9,2.77536686]
[1768651152166,24.2442289,143.93,143.9,2.77536686]
[1768651152480,5.20766909,143.92,143.9,2.77536686]
[1768651152684,24.2442289,143.93,143.9,2.77536686]
[1768651152984,5.20774317,143.92,143.9,2.77536686]
[1768651153176,24.2442289,143.93,143.9,2.77536686]
[1768651153377,5.20774191,143.92,143.9,2.77536686]
[1768651153557,24.2442289,143.93,143.9,2.77536686]
[1768651153760,5.20782433,143.92,143.9,2.77536686]
[1768651153960,24.2442289,143.93,143.9,2.77536686]
[1768651154180,5.20782433,143.92,143.9,2.77536686]
[1768651154362,24.2442289,143.93,143.9,2.77536686]
[1768651154563,5.20791238,143.92,143.9,2.77536686]
[1768651154762,24.2442289,143.93,143.9,2.77536686]
[1768651155071,5.20791365,143.92,143.9,2.77536686]
[1768651155272,24.2442289,143.93,143.9,2.77536686]
[1768651155580,5.2079834,143.92,143.9,2.77536686]
[1768651155781,24.2442289,143.93,143.9,2.77536686]
[1768651155981,5.2080151,143.92,143.9,2.77536686]
[1768651156282,24.2442289,143.93,143.9,2.77536686]
[1768651156577,5.20812746,143.92,143.9,2.77536686]
[1768651156778,24.2442289,143.93,143.9,2.77536686]
[1768651156978,5.20812746,143.92,143.9,2.77536686]
[1768651157180,24.2442289,143.93,143.9,2.77536686]
[1768651157388,5.20812746,143.92,143.9,2.77536686]
[1768651157683,24.2442289,143.93,143.9,2.77536686]
[1768651157885,5.20825389,143.92,143.9,2.77536686]
[1768651158078,24.2442289,143.93,143.9,2.77536686]
[1768651158282,5.20825389,143.92,143.9,2.77536686]
[1768651158481,24.2442289,143.93,143.9,2.77536686]
[1768651158682,5.20839192,143.92,143.9,2.77536686]
[1768651158883,24.2442289,143.93,143.9,2.77536686]
[1768651159071,5.20839319,143.92,143.9,2.77536686]
[1768651159272,24.2442289,143.93,143.9,2.77536686]
[1768651159471,5.20854886,143.92,143.9,2.77536686]
[1768651159672,24.2442289,143.93,143.9,2.77536686]
[1768651159879,5.20854759,143.92,143.9,2.77536686]
[1768651160080,22.16791765,143.93,143.9,2.77536686]
[1768651160280,5.20854759,143.92,143.9,2.77536686]
[1768651160491,22.16791765,143.93,143.9,2.77536686]
[1768651160691,5.20872501,143.92,143.9,2.77536686]
[1768651160879,22.16791765,143.93,143.9,2.77536686]
[1768651161081,5.20872501,143.92,143.9,2.77536686]
[1768651161380,22.16791765,143.93,143.9,2.77536686]
[1768651161581,5.20892532,143.92,143.9,2.77536686]
[1768651161781,22.16791765,143.93,143.9,2.77536686]
[1768651161989,5.20884489,143.92,143.9,2.77536686]
[1768651162171,22.16791765,143.93,143.91,2.6885498]
[1768651162882,24.93517529,143.93,143.91,2.6885498]
[1768651163777,24.93517529,143.93,143.9,2.6885498]
[1768651169894,17.98725764,143.93,143.9,2.6885498]
[1768651171195,15.22,143.93,143.91,2.6885498]
[1768651176508,11.89117088,143.94,143.91,2.6885498]
[1768651176712,27.11117088,143.94,143.91,2.6885498]
[1768651177004,25.03478385,143.94,143.91,2.6885498]
[1768651177195,2.78024876,143.93,143.91,2.6885498]
[1768651182690,18.00024876,143.93,143.91,2.6885498]
[1768651184439,15.22,143.93,143.91,2.6885498]
[1768651192219,11.89260458,143.94,143.91,2.6885498]
[1768651192423,27.11260458,143.94,143.91,2.6885498]
[1768651194320,25.03621755,143.94,143.91,2.6885498]
[1768651194526,27.11260458,143.94,143.91,2.6885498]
[1768651196219,4.94507837,143.94,143.91,2.6885498]
[1768651196421,18.08869134,143.94,143.91,2.6885498]
[1768651198318,27.11251193,143.94,143.91,2.6885498]
[1768651200106,2.74422408,143.93,143.9,2.56055964]
[1768651200311,4.82061111,143.93,143.9,2.56055964]
[1768651201528,2.74422408,143.93,143.9,2.56055964]
[1768651201724,15.22,143.92,143.9,2.56055964]
[1768651204531,17.95789588,143.92,143.89,9.51024432]
[1768651204915,15.22,143.92,143.9,2.56055964]
[1768651208832,15.19000001,143.92,143.9,2.56055964]
[1768651213928,11.76249622,143.93,143.9,2.56055964]
[1768651214112,26.98249622,143.93,143.9,2.56055964]
[1768651215427,11.75003239,143.92,143.89,2.56055964]
[1768651217640,9.67364536,143.92,143.89,2.56055964]
[1768651217828,11.75003239,143.92,143.89,2.56055964]
[1768651220637,6.94886572,143.91,143.87,2.56055964]
[1768651220937,2.07638703,143.89,143.87,2.56055964]
[1768651221821,19.98632286,143.9,143.87,2.56055964]
[1768651223242,26.936066,143.9,143.87,2.56055964]